{"text_format":"1","workbook":"xlsx","n_sheets":2,"sheets":["CLUB  ","Feuil1"],"not_rendered":{"charts":0,"images":0,"macros":0,"external_links":0,"defined_names":1,"comments":0,"pivot_tables":0},"unopened":[],"bounds":{"document_bytes":16777216,"sheet_cells":100000,"rows_first":2000,"rows_last":500,"rows_between":2000,"halvings":0,"cell_chars":16384,"cell_head_chars":4096},"cells_cut":0,"cells_raw":0,"read":"whole","date_system":"1900"}

{"sheet":"CLUB  ","index":0,"n_rows":66,"n_cols":48,"rows_kept":66,"cut":false,"hidden":false,"merged":[[8,3,8,7],[8,24,8,25],[9,3,9,4],[9,8,9,22],[9,23,9,38],[10,5,10,6],[10,8,10,22],[65,44,65,46],[5,44,6,44],[5,39,6,39],[5,42,6,42],[8,47,9,47],[62,3,62,5],[62,44,62,46],[63,44,63,46],[64,44,64,46],[11,8,61,22],[3,1,3,4],[3,8,3,22],[3,23,3,30],[2,31,2,46],[4,0,6,0],[4,1,6,5],[4,7,6,7],[4,24,6,25],[4,30,6,30],[4,27,6,27],[4,29,6,29],[4,35,4,38],[5,43,6,43],[5,40,6,40],[5,41,6,41],[0,0,0,1],[0,2,0,3],[1,2,1,47],[2,1,2,4],[2,8,2,30],[4,43,4,46],[5,35,6,35],[5,36,6,36],[5,37,6,37],[5,38,6,38],[4,39,4,42],[5,45,6,45],[5,46,6,46],[4,31,4,34],[5,31,6,31],[5,32,6,32],[5,33,6,33],[5,34,6,34]]}
["Une feuille par CLUB",null," "]
[null,null,"CHALLENGE FEDERAL HALTEROPHILE 2016/2017"]
["REG :"," ",null,null,null,null,null,null,"POINTS DE BONIFICATION A LA PARTICIPATION",null,null,null,null,null,null,null,null,null,null,null,null,null,null,null,null,null,null,null,null,null,null,"POINTS DE BONIFICATION AUX RESULTATS"]
[null,"en toutes lettres ",null,null,null,null,null,null,"PAR EQUIPES",null,null,null,null,null,null,null,null,null,null,null,null,null,null,"INDIVIDUELS"]
["CLUB :"," ",null,null,null,null,null,null,"1° Tour","2° Tour","Finale","1° Tour","2° Tour","2° Tour","Finale","Finale","1° Tour","2° Tour","Finale","Cht de FR","Equipe","Equipe","Equipe","Trophée ","CLUB FORMATEUR CA/JU",null,"Tournoi","Chts         EUROPE","Chts","JEUX MED.    JOJ","JO","CHAMPIONNATS de TERRITOIRES",null,null,null,"Finale TROPHE MINIMES",null,null,null,"GRAND PRIX FEDERAL",null,null,null,"France CA.JU.SE"]
[null,null,null,null,null,null,null,null,"CFrance Clubs","CFrance Clubs","CFrance Clubs","CFrance Clubs","CFrance Clubs","CFrance Clubs","CFrance Clubs","CFrance Clubs","CFrance Clubs","CFrance Clubs","CFrance Clubs","des Clubs","Nat.","Nat.","Nat. 2F","de Territoire",null,null,"et",null,"Monde",null,null,"1°","2°","3°","Autres","1°","2°","3°","Autres","1°","2°","3°","Autres","1°","2°","3°","Autres","TOTAL"]
[null,null,null,null,null,null,null,null,"MIXTE SENIORS","MIXTE SENIORS","MIXTE SENIORS","JEUNES","JEUNES MASC","JEUNES FEM","JEUNES","FEM   JEUNES","Minimes","Minimes","Minimes","Div. Régl.","NAT 1 ","NAT 2 ","NAT 3 ","MINIMES",null,null,"Sélect/int",null,"C/J/S",null,null,null,null,null,null,null,null,null,null,null,null,null,null,null,null,null,null,"POINTS"]
[null,null,null,null,null,null,null,null,10,15,20,8,10,15,15,20,8,15,20,8,25,20,10,6,"FEM : 8","HOM : 6",15,30,50,50,90,16,14,12,8,16,14,12,8,24,20,16,12,30,25,20,15]
["Respecter l'écriture des SERIES, pour un calcul automatique",null,null,"Points EQUIPE OBTENUS  =",null,null,null,null,null,null,null,null,null,null," ",null,null,null,null,null,null,null,null,null,"1ère Compétition pour 1 athlète 3 Challenges et 1er Tour CHAMP. JEUNES",null,null,null,null,null,null,null,null,null,null,null,null,null,null,null,null,null,null,null,null,null,null,{"$f":"SUM(I9:W9)","v":0}]
["colonne H",null,null,"CATEGORIES ",null,null,null,null,"ci-dessus points par équipe  X  par nombre d'équipes"]
["Licence","NOMS","Prénoms","Sexe","CAT","SERIE",null,"Pts SERIES","ne rien inscrire ci-dessous"]
[null,null,null,"H","C1 85","DEB ",null,{"$f":"IF(F12=Feuil1!$A$1,Feuil1!$A$2,IF(F12=Feuil1!$B$1,Feuil1!$B$2,IF(F12=Feuil1!$C$1,Feuil1!$C$2,IF(F12=Feuil1!$D$1,Feuil1!$D$2,IF(F12=Feuil1!$E$1,Feuil1!$E$2,IF(F12=Feuil1!$F$1,Feuil1!$F$2,IF(F12=Feuil1!$G$1,Feuil1!$G$2,IF(F12=Feuil1!$H$1,Feuil1!$H$2,IF(F12=Feuil1!$I$1,Feuil1!$I$2,IF(F12=Feuil1!$J$1,Feuil1!$J$2,IF(F12=Feuil1!$K$1,Feuil1!$K$2,IF(F12=Feuil1!$L$1,Feuil1!$L$2,1))))))))))))","v":2},"XXXXXXXXXXXXXXXXXXX",null,null,null,null,null,null,null,null,null,null,null,null,null,null,null,null,null,null,null,null,null,null,null,null,null,null,null,null,null,null,null,null,null,null,null,null,null,null,{"$f":"SUM(X12:AU12)","v":0}]
[null,null,null,"F","FC1 53","DEP +"," ",{"$f":"IF(F13=Feuil1!$A$1,Feuil1!$A$2,IF(F13=Feuil1!$B$1,Feuil1!$B$2,IF(F13=Feuil1!$C$1,Feuil1!$C$2,IF(F13=Feuil1!$D$1,Feuil1!$D$2,IF(F13=Feuil1!$E$1,Feuil1!$E$2,IF(F13=Feuil1!$F$1,Feuil1!$F$2,IF(F13=Feuil1!$G$1,Feuil1!$G$2,IF(F13=Feuil1!$H$1,Feuil1!$H$2,IF(F13=Feuil1!$I$1,Feuil1!$I$2,IF(F13=Feuil1!$J$1,Feuil1!$J$2,IF(F13=Feuil1!$K$1,Feuil1!$K$2,IF(F13=Feuil1!$L$1,Feuil1!$L$2,1))))))))))))","v":3},null,null,null,null,null,null,null,null,null,null,null,null,null,null,null,null,null,null,null,null,null,null,null,null,null,null,null,null,null,null,null,null,null,null,null,null,null,null,null,{"$f":"SUM(X13:AU13)","v":0}]
[null,null,null,"F","FS69","DEB ",null,{"$f":"IF(F14=Feuil1!$A$1,Feuil1!$A$2,IF(F14=Feuil1!$B$1,Feuil1!$B$2,IF(F14=Feuil1!$C$1,Feuil1!$C$2,IF(F14=Feuil1!$D$1,Feuil1!$D$2,IF(F14=Feuil1!$E$1,Feuil1!$E$2,IF(F14=Feuil1!$F$1,Feuil1!$F$2,IF(F14=Feuil1!$G$1,Feuil1!$G$2,IF(F14=Feuil1!$H$1,Feuil1!$H$2,IF(F14=Feuil1!$I$1,Feuil1!$I$2,IF(F14=Feuil1!$J$1,Feuil1!$J$2,IF(F14=Feuil1!$K$1,Feuil1!$K$2,IF(F14=Feuil1!$L$1,Feuil1!$L$2,1))))))))))))","v":2},null,null,null,null,null,null,null,null,null,null,null,null,null,null,null,null,null,null,null,null,null,null,null,null,null,null,null,null,null,null,null,null,null,null,null,null,null,null,null,0]
[null,null,null,"H","J94","FED +",null,{"$f":"IF(F15=Feuil1!$A$1,Feuil1!$A$2,IF(F15=Feuil1!$B$1,Feuil1!$B$2,IF(F15=Feuil1!$C$1,Feuil1!$C$2,IF(F15=Feuil1!$D$1,Feuil1!$D$2,IF(F15=Feuil1!$E$1,Feuil1!$E$2,IF(F15=Feuil1!$F$1,Feuil1!$F$2,IF(F15=Feuil1!$G$1,Feuil1!$G$2,IF(F15=Feuil1!$H$1,Feuil1!$H$2,IF(F15=Feuil1!$I$1,Feuil1!$I$2,IF(F15=Feuil1!$J$1,Feuil1!$J$2,IF(F15=Feuil1!$K$1,Feuil1!$K$2,IF(F15=Feuil1!$L$1,Feuil1!$L$2,1))))))))))))","v":12},null,null,null,null,null,null,null,null,null,null,null,null,null,null,null," "," ",null,null,null,null,null,null,null,null,null,null,null,null,null,null,null,null,null,null,null,null,null,null,0]
[null,null,null,"F","FS63","IRG +",null,{"$f":"IF(F16=Feuil1!$A$1,Feuil1!$A$2,IF(F16=Feuil1!$B$1,Feuil1!$B$2,IF(F16=Feuil1!$C$1,Feuil1!$C$2,IF(F16=Feuil1!$D$1,Feuil1!$D$2,IF(F16=Feuil1!$E$1,Feuil1!$E$2,IF(F16=Feuil1!$F$1,Feuil1!$F$2,IF(F16=Feuil1!$G$1,Feuil1!$G$2,IF(F16=Feuil1!$H$1,Feuil1!$H$2,IF(F16=Feuil1!$I$1,Feuil1!$I$2,IF(F16=Feuil1!$J$1,Feuil1!$J$2,IF(F16=Feuil1!$K$1,Feuil1!$K$2,IF(F16=Feuil1!$L$1,Feuil1!$L$2,1))))))))))))","v":8},null,null,null,null,null,null,null,null,null,null,null,null,null,null,null,null,null,null,null,null,null,null,null,null,null,null,null,null,null,null,null,null,null,null,null,null,null,null,null,0]
[null,null,null,"H","C2 56","IRG +",null,{"$f":"IF(F17=Feuil1!$A$1,Feuil1!$A$2,IF(F17=Feuil1!$B$1,Feuil1!$B$2,IF(F17=Feuil1!$C$1,Feuil1!$C$2,IF(F17=Feuil1!$D$1,Feuil1!$D$2,IF(F17=Feuil1!$E$1,Feuil1!$E$2,IF(F17=Feuil1!$F$1,Feuil1!$F$2,IF(F17=Feuil1!$G$1,Feuil1!$G$2,IF(F17=Feuil1!$H$1,Feuil1!$H$2,IF(F17=Feuil1!$I$1,Feuil1!$I$2,IF(F17=Feuil1!$J$1,Feuil1!$J$2,IF(F17=Feuil1!$K$1,Feuil1!$K$2,IF(F17=Feuil1!$L$1,Feuil1!$L$2,1))))))))))))","v":8},null,null,null,null,null,null,null,null,null,null,null,null,null,null,null,null,null,null,null,null,null,null,null,null,null,null,null,null,null,null,null,null,null,null,null,null,null,null,null,0]
[null,null,null,"H","J+105","INTA +",null,{"$f":"IF(F18=Feuil1!$A$1,Feuil1!$A$2,IF(F18=Feuil1!$B$1,Feuil1!$B$2,IF(F18=Feuil1!$C$1,Feuil1!$C$2,IF(F18=Feuil1!$D$1,Feuil1!$D$2,IF(F18=Feuil1!$E$1,Feuil1!$E$2,IF(F18=Feuil1!$F$1,Feuil1!$F$2,IF(F18=Feuil1!$G$1,Feuil1!$G$2,IF(F18=Feuil1!$H$1,Feuil1!$H$2,IF(F18=Feuil1!$I$1,Feuil1!$I$2,IF(F18=Feuil1!$J$1,Feuil1!$J$2,IF(F18=Feuil1!$K$1,Feuil1!$K$2,IF(F18=Feuil1!$L$1,Feuil1!$L$2,1))))))))))))","v":40},null,null,null,null,null,null,null,null,null,null,null,null,null,null,null,null,null,null,null,null,null,null,null,null,null,null,null,null,null,null,null,null,null,null,null,null,null,null,null,0]
[null,null,null,"H","S62","OLY +",null,{"$f":"IF(F19=Feuil1!$A$1,Feuil1!$A$2,IF(F19=Feuil1!$B$1,Feuil1!$B$2,IF(F19=Feuil1!$C$1,Feuil1!$C$2,IF(F19=Feuil1!$D$1,Feuil1!$D$2,IF(F19=Feuil1!$E$1,Feuil1!$E$2,IF(F19=Feuil1!$F$1,Feuil1!$F$2,IF(F19=Feuil1!$G$1,Feuil1!$G$2,IF(F19=Feuil1!$H$1,Feuil1!$H$2,IF(F19=Feuil1!$I$1,Feuil1!$I$2,IF(F19=Feuil1!$J$1,Feuil1!$J$2,IF(F19=Feuil1!$K$1,Feuil1!$K$2,IF(F19=Feuil1!$L$1,Feuil1!$L$2,1))))))))))))","v":60},null,null,null,null,null,null,null,null,null,null,null,null,null,null,null,null,null,null,null,null,null,null,null,null,null,null,null,null,null,null,null,null,null,null,null,null,null,null,null,0]
[null,null,null,"H","C1 45","DEB ",null,{"$f":"IF(F20=Feuil1!$A$1,Feuil1!$A$2,IF(F20=Feuil1!$B$1,Feuil1!$B$2,IF(F20=Feuil1!$C$1,Feuil1!$C$2,IF(F20=Feuil1!$D$1,Feuil1!$D$2,IF(F20=Feuil1!$E$1,Feuil1!$E$2,IF(F20=Feuil1!$F$1,Feuil1!$F$2,IF(F20=Feuil1!$G$1,Feuil1!$G$2,IF(F20=Feuil1!$H$1,Feuil1!$H$2,IF(F20=Feuil1!$I$1,Feuil1!$I$2,IF(F20=Feuil1!$J$1,Feuil1!$J$2,IF(F20=Feuil1!$K$1,Feuil1!$K$2,IF(F20=Feuil1!$L$1,Feuil1!$L$2,1))))))))))))","v":2},null,null,null,null,null,null,null,null,null,null,null,null,null,null,null,null,null,null,null,null,null,null,null,null,null,null,null,null,null,null,null,null,null,null,null,null,null,null,null,0]
[null,null,null,"F","FS58","FED +",null,{"$f":"IF(F21=Feuil1!$A$1,Feuil1!$A$2,IF(F21=Feuil1!$B$1,Feuil1!$B$2,IF(F21=Feuil1!$C$1,Feuil1!$C$2,IF(F21=Feuil1!$D$1,Feuil1!$D$2,IF(F21=Feuil1!$E$1,Feuil1!$E$2,IF(F21=Feuil1!$F$1,Feuil1!$F$2,IF(F21=Feuil1!$G$1,Feuil1!$G$2,IF(F21=Feuil1!$H$1,Feuil1!$H$2,IF(F21=Feuil1!$I$1,Feuil1!$I$2,IF(F21=Feuil1!$J$1,Feuil1!$J$2,IF(F21=Feuil1!$K$1,Feuil1!$K$2,IF(F21=Feuil1!$L$1,Feuil1!$L$2,1))))))))))))","v":12},null,null,null,null,null,null,null,null,null,null,null,null,null,null,null,null,null,null,null,null,null,null,null,null,null,null,null,null,null,null,null,null,null,null,null,null,null,null,null,0]
[null,null,null,"H","S85","REG +",null,{"$f":"IF(F22=Feuil1!$A$1,Feuil1!$A$2,IF(F22=Feuil1!$B$1,Feuil1!$B$2,IF(F22=Feuil1!$C$1,Feuil1!$C$2,IF(F22=Feuil1!$D$1,Feuil1!$D$2,IF(F22=Feuil1!$E$1,Feuil1!$E$2,IF(F22=Feuil1!$F$1,Feuil1!$F$2,IF(F22=Feuil1!$G$1,Feuil1!$G$2,IF(F22=Feuil1!$H$1,Feuil1!$H$2,IF(F22=Feuil1!$I$1,Feuil1!$I$2,IF(F22=Feuil1!$J$1,Feuil1!$J$2,IF(F22=Feuil1!$K$1,Feuil1!$K$2,IF(F22=Feuil1!$L$1,Feuil1!$L$2,1))))))))))))","v":5},null,null,null,null,null,null,null,null,null,null,null,null,null,null,null,null,null,null,null,null,null,null,null,null,null,null,null,null,null,null,null,null,null,null,null,null,null,null,null,0]
[null,null,null,"F","FS58","DEB ",null,{"$f":"IF(F23=Feuil1!$A$1,Feuil1!$A$2,IF(F23=Feuil1!$B$1,Feuil1!$B$2,IF(F23=Feuil1!$C$1,Feuil1!$C$2,IF(F23=Feuil1!$D$1,Feuil1!$D$2,IF(F23=Feuil1!$E$1,Feuil1!$E$2,IF(F23=Feuil1!$F$1,Feuil1!$F$2,IF(F23=Feuil1!$G$1,Feuil1!$G$2,IF(F23=Feuil1!$H$1,Feuil1!$H$2,IF(F23=Feuil1!$I$1,Feuil1!$I$2,IF(F23=Feuil1!$J$1,Feuil1!$J$2,IF(F23=Feuil1!$K$1,Feuil1!$K$2,IF(F23=Feuil1!$L$1,Feuil1!$L$2,1))))))))))))","v":2},null,null,null,null,null,null,null,null,null,null,null,null,null,null,null,null,null,null,null,null,null,null,null,null,null,null,null,null,null,null,null,null,null,null,null,null,null,null,null,0]
[null,null,null,"H","S69","IRG +",null,{"$f":"IF(F24=Feuil1!$A$1,Feuil1!$A$2,IF(F24=Feuil1!$B$1,Feuil1!$B$2,IF(F24=Feuil1!$C$1,Feuil1!$C$2,IF(F24=Feuil1!$D$1,Feuil1!$D$2,IF(F24=Feuil1!$E$1,Feuil1!$E$2,IF(F24=Feuil1!$F$1,Feuil1!$F$2,IF(F24=Feuil1!$G$1,Feuil1!$G$2,IF(F24=Feuil1!$H$1,Feuil1!$H$2,IF(F24=Feuil1!$I$1,Feuil1!$I$2,IF(F24=Feuil1!$J$1,Feuil1!$J$2,IF(F24=Feuil1!$K$1,Feuil1!$K$2,IF(F24=Feuil1!$L$1,Feuil1!$L$2,1))))))))))))","v":8},null,null,null,null,null,null,null,null,null,null,null,null,null,null,null,null,null,null,null,null,null,null,null,null,null,null,null,null,null,null,null,null,null,null,null,null,null,null,null,0]
[null,null,null,"H","S105","DEB ",null,{"$f":"IF(F25=Feuil1!$A$1,Feuil1!$A$2,IF(F25=Feuil1!$B$1,Feuil1!$B$2,IF(F25=Feuil1!$C$1,Feuil1!$C$2,IF(F25=Feuil1!$D$1,Feuil1!$D$2,IF(F25=Feuil1!$E$1,Feuil1!$E$2,IF(F25=Feuil1!$F$1,Feuil1!$F$2,IF(F25=Feuil1!$G$1,Feuil1!$G$2,IF(F25=Feuil1!$H$1,Feuil1!$H$2,IF(F25=Feuil1!$I$1,Feuil1!$I$2,IF(F25=Feuil1!$J$1,Feuil1!$J$2,IF(F25=Feuil1!$K$1,Feuil1!$K$2,IF(F25=Feuil1!$L$1,Feuil1!$L$2,1))))))))))))","v":2},null,null,null,null,null,null,null,null,null,null,null,null,null,null,null,null,null,null,null,null,null,null,null,null,null,null,null,null,null,null,null,null,null,null,null,null,null,null,null,0]
[null,null,null,"H","C1 85","DEP +",null,{"$f":"IF(F26=Feuil1!$A$1,Feuil1!$A$2,IF(F26=Feuil1!$B$1,Feuil1!$B$2,IF(F26=Feuil1!$C$1,Feuil1!$C$2,IF(F26=Feuil1!$D$1,Feuil1!$D$2,IF(F26=Feuil1!$E$1,Feuil1!$E$2,IF(F26=Feuil1!$F$1,Feuil1!$F$2,IF(F26=Feuil1!$G$1,Feuil1!$G$2,IF(F26=Feuil1!$H$1,Feuil1!$H$2,IF(F26=Feuil1!$I$1,Feuil1!$I$2,IF(F26=Feuil1!$J$1,Feuil1!$J$2,IF(F26=Feuil1!$K$1,Feuil1!$K$2,IF(F26=Feuil1!$L$1,Feuil1!$L$2,1))))))))))))","v":3},null,null,null,null,null,null,null,null,null,null,null,null,null,null,null,null,null,null,null,null,null,null,null,null,null,null,null,null,null,null,null,null,null,null,null,null,null,null,null,0]
[null,null,null,"F","FS69","DEB ",null,{"$f":"IF(F27=Feuil1!$A$1,Feuil1!$A$2,IF(F27=Feuil1!$B$1,Feuil1!$B$2,IF(F27=Feuil1!$C$1,Feuil1!$C$2,IF(F27=Feuil1!$D$1,Feuil1!$D$2,IF(F27=Feuil1!$E$1,Feuil1!$E$2,IF(F27=Feuil1!$F$1,Feuil1!$F$2,IF(F27=Feuil1!$G$1,Feuil1!$G$2,IF(F27=Feuil1!$H$1,Feuil1!$H$2,IF(F27=Feuil1!$I$1,Feuil1!$I$2,IF(F27=Feuil1!$J$1,Feuil1!$J$2,IF(F27=Feuil1!$K$1,Feuil1!$K$2,IF(F27=Feuil1!$L$1,Feuil1!$L$2,1))))))))))))","v":2},null,null,null,null,null,null,null,null,null,null,null,null,null,null,null,null,null,null,null,null,null,null,null,null,null,null,null,null,null,null,null,null,null,null,null,null,null,null,null,0]
[null,null,null,"H","S+105","IRG +",null,{"$f":"IF(F28=Feuil1!$A$1,Feuil1!$A$2,IF(F28=Feuil1!$B$1,Feuil1!$B$2,IF(F28=Feuil1!$C$1,Feuil1!$C$2,IF(F28=Feuil1!$D$1,Feuil1!$D$2,IF(F28=Feuil1!$E$1,Feuil1!$E$2,IF(F28=Feuil1!$F$1,Feuil1!$F$2,IF(F28=Feuil1!$G$1,Feuil1!$G$2,IF(F28=Feuil1!$H$1,Feuil1!$H$2,IF(F28=Feuil1!$I$1,Feuil1!$I$2,IF(F28=Feuil1!$J$1,Feuil1!$J$2,IF(F28=Feuil1!$K$1,Feuil1!$K$2,IF(F28=Feuil1!$L$1,Feuil1!$L$2,1))))))))))))","v":8},null,null,null,null,null,null,null,null,null,null,null,null,null,null,null,null,null,null,null,null,null,null,null,null,null,null,null,null,null,null,null,null,null,null,null,null,null,null,null,0]
[null,null,null,"H","S69","INTA +",null,{"$f":"IF(F29=Feuil1!$A$1,Feuil1!$A$2,IF(F29=Feuil1!$B$1,Feuil1!$B$2,IF(F29=Feuil1!$C$1,Feuil1!$C$2,IF(F29=Feuil1!$D$1,Feuil1!$D$2,IF(F29=Feuil1!$E$1,Feuil1!$E$2,IF(F29=Feuil1!$F$1,Feuil1!$F$2,IF(F29=Feuil1!$G$1,Feuil1!$G$2,IF(F29=Feuil1!$H$1,Feuil1!$H$2,IF(F29=Feuil1!$I$1,Feuil1!$I$2,IF(F29=Feuil1!$J$1,Feuil1!$J$2,IF(F29=Feuil1!$K$1,Feuil1!$K$2,IF(F29=Feuil1!$L$1,Feuil1!$L$2,1))))))))))))","v":40},null,null,null,null,null,null,null,null,null,null,null,null,null,null,null,null,null,null,null,null,null,null,null,null,null,null,null,null,null,null,null,null,null,null,null,null,null,null,null,0]
[null,null,null,"H","S69","DEP +",null,{"$f":"IF(F30=Feuil1!$A$1,Feuil1!$A$2,IF(F30=Feuil1!$B$1,Feuil1!$B$2,IF(F30=Feuil1!$C$1,Feuil1!$C$2,IF(F30=Feuil1!$D$1,Feuil1!$D$2,IF(F30=Feuil1!$E$1,Feuil1!$E$2,IF(F30=Feuil1!$F$1,Feuil1!$F$2,IF(F30=Feuil1!$G$1,Feuil1!$G$2,IF(F30=Feuil1!$H$1,Feuil1!$H$2,IF(F30=Feuil1!$I$1,Feuil1!$I$2,IF(F30=Feuil1!$J$1,Feuil1!$J$2,IF(F30=Feuil1!$K$1,Feuil1!$K$2,IF(F30=Feuil1!$L$1,Feuil1!$L$2,1))))))))))))","v":3},null,null,null,null,null,null,null,null,null,null,null,null,null,null,null,null,null,null,null,null,null,null,null,null,null,null,null,null,null,null,null,null,null,null,null,null,null,null,null,0]
[null,null,null,"H","S77","FED +",null,{"$f":"IF(F31=Feuil1!$A$1,Feuil1!$A$2,IF(F31=Feuil1!$B$1,Feuil1!$B$2,IF(F31=Feuil1!$C$1,Feuil1!$C$2,IF(F31=Feuil1!$D$1,Feuil1!$D$2,IF(F31=Feuil1!$E$1,Feuil1!$E$2,IF(F31=Feuil1!$F$1,Feuil1!$F$2,IF(F31=Feuil1!$G$1,Feuil1!$G$2,IF(F31=Feuil1!$H$1,Feuil1!$H$2,IF(F31=Feuil1!$I$1,Feuil1!$I$2,IF(F31=Feuil1!$J$1,Feuil1!$J$2,IF(F31=Feuil1!$K$1,Feuil1!$K$2,IF(F31=Feuil1!$L$1,Feuil1!$L$2,1))))))))))))","v":12},null,null,null,null,null,null,null,null,null,null,null,null,null,null,null,null,null,null,null,null,null,null,null,null,null,null,null,null,null,null,null,null,null,null,null,null,null,null,null,0]
[null,null,null,"F","FS53","DEB ",null,{"$f":"IF(F32=Feuil1!$A$1,Feuil1!$A$2,IF(F32=Feuil1!$B$1,Feuil1!$B$2,IF(F32=Feuil1!$C$1,Feuil1!$C$2,IF(F32=Feuil1!$D$1,Feuil1!$D$2,IF(F32=Feuil1!$E$1,Feuil1!$E$2,IF(F32=Feuil1!$F$1,Feuil1!$F$2,IF(F32=Feuil1!$G$1,Feuil1!$G$2,IF(F32=Feuil1!$H$1,Feuil1!$H$2,IF(F32=Feuil1!$I$1,Feuil1!$I$2,IF(F32=Feuil1!$J$1,Feuil1!$J$2,IF(F32=Feuil1!$K$1,Feuil1!$K$2,IF(F32=Feuil1!$L$1,Feuil1!$L$2,1))))))))))))","v":2},null,null,null,null,null,null,null,null,null,null,null,null,null,null,null,null,null,null,null,null,null,null,null,null,null,null,null,null,null,null,null,null,null,null,null,null,null,null,null,0]
[null,null,null,"H","C1 56","NAT +",null,{"$f":"IF(F33=Feuil1!$A$1,Feuil1!$A$2,IF(F33=Feuil1!$B$1,Feuil1!$B$2,IF(F33=Feuil1!$C$1,Feuil1!$C$2,IF(F33=Feuil1!$D$1,Feuil1!$D$2,IF(F33=Feuil1!$E$1,Feuil1!$E$2,IF(F33=Feuil1!$F$1,Feuil1!$F$2,IF(F33=Feuil1!$G$1,Feuil1!$G$2,IF(F33=Feuil1!$H$1,Feuil1!$H$2,IF(F33=Feuil1!$I$1,Feuil1!$I$2,IF(F33=Feuil1!$J$1,Feuil1!$J$2,IF(F33=Feuil1!$K$1,Feuil1!$K$2,IF(F33=Feuil1!$L$1,Feuil1!$L$2,1))))))))))))","v":20},null,null,null,null,null,null,null,null,null,null,null,null,null,null,null,null,null,null,null,null,null,null,null,null,null,null,null,null,null,null,null,null,null,null,null,null,null,null,null,0]
[null,null,null,"H","S85","REG +",null,{"$f":"IF(F34=Feuil1!$A$1,Feuil1!$A$2,IF(F34=Feuil1!$B$1,Feuil1!$B$2,IF(F34=Feuil1!$C$1,Feuil1!$C$2,IF(F34=Feuil1!$D$1,Feuil1!$D$2,IF(F34=Feuil1!$E$1,Feuil1!$E$2,IF(F34=Feuil1!$F$1,Feuil1!$F$2,IF(F34=Feuil1!$G$1,Feuil1!$G$2,IF(F34=Feuil1!$H$1,Feuil1!$H$2,IF(F34=Feuil1!$I$1,Feuil1!$I$2,IF(F34=Feuil1!$J$1,Feuil1!$J$2,IF(F34=Feuil1!$K$1,Feuil1!$K$2,IF(F34=Feuil1!$L$1,Feuil1!$L$2,1))))))))))))","v":5},null,null,null,null,null,null,null,null,null,null,null,null,null,null,null,null,null,null,null,null,null,null,null,null,null,null,null,null,null,null,null,null,null,null,null,null,null,null,null,0]
[null,null,null,"H","C1 62","FED +",null,{"$f":"IF(F35=Feuil1!$A$1,Feuil1!$A$2,IF(F35=Feuil1!$B$1,Feuil1!$B$2,IF(F35=Feuil1!$C$1,Feuil1!$C$2,IF(F35=Feuil1!$D$1,Feuil1!$D$2,IF(F35=Feuil1!$E$1,Feuil1!$E$2,IF(F35=Feuil1!$F$1,Feuil1!$F$2,IF(F35=Feuil1!$G$1,Feuil1!$G$2,IF(F35=Feuil1!$H$1,Feuil1!$H$2,IF(F35=Feuil1!$I$1,Feuil1!$I$2,IF(F35=Feuil1!$J$1,Feuil1!$J$2,IF(F35=Feuil1!$K$1,Feuil1!$K$2,IF(F35=Feuil1!$L$1,Feuil1!$L$2,1))))))))))))","v":12},null,null,null,null,null,null,null,null,null,null,null,null,null,null,null,null,null,null,null,null,null,null,null,null,null,null,null,null,null,null,null,null,null,null,null,null,null,null,null,0]
[null,null,null,"H","S77","DEB ",null,{"$f":"IF(F36=Feuil1!$A$1,Feuil1!$A$2,IF(F36=Feuil1!$B$1,Feuil1!$B$2,IF(F36=Feuil1!$C$1,Feuil1!$C$2,IF(F36=Feuil1!$D$1,Feuil1!$D$2,IF(F36=Feuil1!$E$1,Feuil1!$E$2,IF(F36=Feuil1!$F$1,Feuil1!$F$2,IF(F36=Feuil1!$G$1,Feuil1!$G$2,IF(F36=Feuil1!$H$1,Feuil1!$H$2,IF(F36=Feuil1!$I$1,Feuil1!$I$2,IF(F36=Feuil1!$J$1,Feuil1!$J$2,IF(F36=Feuil1!$K$1,Feuil1!$K$2,IF(F36=Feuil1!$L$1,Feuil1!$L$2,1))))))))))))","v":2},null,null,null,null,null,null,null,null,null,null,null,null,null,null,null,null,null,null,null,null,null,null,null,null,null,null,null,null,null,null,null,null,null,null,null,null,null,null,null,0]
[null,null,null,"F","FJ53","DEP +",null,{"$f":"IF(F37=Feuil1!$A$1,Feuil1!$A$2,IF(F37=Feuil1!$B$1,Feuil1!$B$2,IF(F37=Feuil1!$C$1,Feuil1!$C$2,IF(F37=Feuil1!$D$1,Feuil1!$D$2,IF(F37=Feuil1!$E$1,Feuil1!$E$2,IF(F37=Feuil1!$F$1,Feuil1!$F$2,IF(F37=Feuil1!$G$1,Feuil1!$G$2,IF(F37=Feuil1!$H$1,Feuil1!$H$2,IF(F37=Feuil1!$I$1,Feuil1!$I$2,IF(F37=Feuil1!$J$1,Feuil1!$J$2,IF(F37=Feuil1!$K$1,Feuil1!$K$2,IF(F37=Feuil1!$L$1,Feuil1!$L$2,1))))))))))))","v":3},null,null,null,null,null,null,null,null,null,null,null,null,null,null,null,null,null,null,null,null,null,null,null,null,null,null,null,null,null,null,null,null,null,null,null,null,null,null,null,0]
[null,null,null,"F","FC1 63","REG +",null,{"$f":"IF(F38=Feuil1!$A$1,Feuil1!$A$2,IF(F38=Feuil1!$B$1,Feuil1!$B$2,IF(F38=Feuil1!$C$1,Feuil1!$C$2,IF(F38=Feuil1!$D$1,Feuil1!$D$2,IF(F38=Feuil1!$E$1,Feuil1!$E$2,IF(F38=Feuil1!$F$1,Feuil1!$F$2,IF(F38=Feuil1!$G$1,Feuil1!$G$2,IF(F38=Feuil1!$H$1,Feuil1!$H$2,IF(F38=Feuil1!$I$1,Feuil1!$I$2,IF(F38=Feuil1!$J$1,Feuil1!$J$2,IF(F38=Feuil1!$K$1,Feuil1!$K$2,IF(F38=Feuil1!$L$1,Feuil1!$L$2,1))))))))))))","v":5},null,null,null,null,null,null,null,null,null,null,null,null,null,null,null,null,null,null,null,null,null,null,null,null,null,null,null,null,null,null,null,null,null,null,null,null,null,null,null,0]
[null,null,null,"H","S85","IRG +",null,{"$f":"IF(F39=Feuil1!$A$1,Feuil1!$A$2,IF(F39=Feuil1!$B$1,Feuil1!$B$2,IF(F39=Feuil1!$C$1,Feuil1!$C$2,IF(F39=Feuil1!$D$1,Feuil1!$D$2,IF(F39=Feuil1!$E$1,Feuil1!$E$2,IF(F39=Feuil1!$F$1,Feuil1!$F$2,IF(F39=Feuil1!$G$1,Feuil1!$G$2,IF(F39=Feuil1!$H$1,Feuil1!$H$2,IF(F39=Feuil1!$I$1,Feuil1!$I$2,IF(F39=Feuil1!$J$1,Feuil1!$J$2,IF(F39=Feuil1!$K$1,Feuil1!$K$2,IF(F39=Feuil1!$L$1,Feuil1!$L$2,1))))))))))))","v":8},null,null,null,null,null,null,null,null,null,null,null,null,null,null,null,null,null,null,null,null,null,null,null,null,null,null,null,null,null,null,null,null,null,null,null,null,null,null,null,0]
[null,null,null,"H","S105","DEP +",null,{"$f":"IF(F40=Feuil1!$A$1,Feuil1!$A$2,IF(F40=Feuil1!$B$1,Feuil1!$B$2,IF(F40=Feuil1!$C$1,Feuil1!$C$2,IF(F40=Feuil1!$D$1,Feuil1!$D$2,IF(F40=Feuil1!$E$1,Feuil1!$E$2,IF(F40=Feuil1!$F$1,Feuil1!$F$2,IF(F40=Feuil1!$G$1,Feuil1!$G$2,IF(F40=Feuil1!$H$1,Feuil1!$H$2,IF(F40=Feuil1!$I$1,Feuil1!$I$2,IF(F40=Feuil1!$J$1,Feuil1!$J$2,IF(F40=Feuil1!$K$1,Feuil1!$K$2,IF(F40=Feuil1!$L$1,Feuil1!$L$2,1))))))))))))","v":3},null,null,null,null,null,null,null,null,null,null,null,null,null,null,null,null,null,null,null,null,null,null,null,null,null,null,null,null,null,null,null,null,null,null,null,null,null,null,null,0]
[null,null,null,"H","S77","DEP +",null,{"$f":"IF(F41=Feuil1!$A$1,Feuil1!$A$2,IF(F41=Feuil1!$B$1,Feuil1!$B$2,IF(F41=Feuil1!$C$1,Feuil1!$C$2,IF(F41=Feuil1!$D$1,Feuil1!$D$2,IF(F41=Feuil1!$E$1,Feuil1!$E$2,IF(F41=Feuil1!$F$1,Feuil1!$F$2,IF(F41=Feuil1!$G$1,Feuil1!$G$2,IF(F41=Feuil1!$H$1,Feuil1!$H$2,IF(F41=Feuil1!$I$1,Feuil1!$I$2,IF(F41=Feuil1!$J$1,Feuil1!$J$2,IF(F41=Feuil1!$K$1,Feuil1!$K$2,IF(F41=Feuil1!$L$1,Feuil1!$L$2,1))))))))))))","v":3},null,null,null,null,null,null,null,null,null,null,null,null,null,null,null,null,null,null,null,null,null,null,null,null,null,null,null,null,null,null,null,null,null,null,null,null,null,null,null,0]
[null,null,null,"H","S85","DEB ",null,{"$f":"IF(F42=Feuil1!$A$1,Feuil1!$A$2,IF(F42=Feuil1!$B$1,Feuil1!$B$2,IF(F42=Feuil1!$C$1,Feuil1!$C$2,IF(F42=Feuil1!$D$1,Feuil1!$D$2,IF(F42=Feuil1!$E$1,Feuil1!$E$2,IF(F42=Feuil1!$F$1,Feuil1!$F$2,IF(F42=Feuil1!$G$1,Feuil1!$G$2,IF(F42=Feuil1!$H$1,Feuil1!$H$2,IF(F42=Feuil1!$I$1,Feuil1!$I$2,IF(F42=Feuil1!$J$1,Feuil1!$J$2,IF(F42=Feuil1!$K$1,Feuil1!$K$2,IF(F42=Feuil1!$L$1,Feuil1!$L$2,1))))))))))))","v":2},null,null,null,null,null,null,null,null,null,null,null,null,null,null,null,null,null,null,null,null,null,null,null,null,null,null,null,null,null,null,null,null,null,null,null,null,null,null,null,0]
[null,null,null,"H","S69","FED +",null,{"$f":"IF(F43=Feuil1!$A$1,Feuil1!$A$2,IF(F43=Feuil1!$B$1,Feuil1!$B$2,IF(F43=Feuil1!$C$1,Feuil1!$C$2,IF(F43=Feuil1!$D$1,Feuil1!$D$2,IF(F43=Feuil1!$E$1,Feuil1!$E$2,IF(F43=Feuil1!$F$1,Feuil1!$F$2,IF(F43=Feuil1!$G$1,Feuil1!$G$2,IF(F43=Feuil1!$H$1,Feuil1!$H$2,IF(F43=Feuil1!$I$1,Feuil1!$I$2,IF(F43=Feuil1!$J$1,Feuil1!$J$2,IF(F43=Feuil1!$K$1,Feuil1!$K$2,IF(F43=Feuil1!$L$1,Feuil1!$L$2,1))))))))))))","v":12},null,null,null,null,null,null,null,null,null,null,null,null,null,null,null,null,null,null,null,null,null,null,null,null,null,null,null,null,null,null,null,null,null,null,null,null,null,null,null,0]
[null,null,null,"H","C2 77","REG +",null,{"$f":"IF(F44=Feuil1!$A$1,Feuil1!$A$2,IF(F44=Feuil1!$B$1,Feuil1!$B$2,IF(F44=Feuil1!$C$1,Feuil1!$C$2,IF(F44=Feuil1!$D$1,Feuil1!$D$2,IF(F44=Feuil1!$E$1,Feuil1!$E$2,IF(F44=Feuil1!$F$1,Feuil1!$F$2,IF(F44=Feuil1!$G$1,Feuil1!$G$2,IF(F44=Feuil1!$H$1,Feuil1!$H$2,IF(F44=Feuil1!$I$1,Feuil1!$I$2,IF(F44=Feuil1!$J$1,Feuil1!$J$2,IF(F44=Feuil1!$K$1,Feuil1!$K$2,IF(F44=Feuil1!$L$1,Feuil1!$L$2,1))))))))))))","v":5},null,null,null,null,null,null,null,null,null,null,null,null,null,null,null,null,null,null,null,null,null,null,null,null,null,null,null,null,null,null,null,null,null,null,null,null,null,null,null,0]
[null,null,null,"F","FS69","DEP +",null,{"$f":"IF(F45=Feuil1!$A$1,Feuil1!$A$2,IF(F45=Feuil1!$B$1,Feuil1!$B$2,IF(F45=Feuil1!$C$1,Feuil1!$C$2,IF(F45=Feuil1!$D$1,Feuil1!$D$2,IF(F45=Feuil1!$E$1,Feuil1!$E$2,IF(F45=Feuil1!$F$1,Feuil1!$F$2,IF(F45=Feuil1!$G$1,Feuil1!$G$2,IF(F45=Feuil1!$H$1,Feuil1!$H$2,IF(F45=Feuil1!$I$1,Feuil1!$I$2,IF(F45=Feuil1!$J$1,Feuil1!$J$2,IF(F45=Feuil1!$K$1,Feuil1!$K$2,IF(F45=Feuil1!$L$1,Feuil1!$L$2,1))))))))))))","v":3},null,null,null,null,null,null,null,null,null,null,null,null,null,null,null,null,null,null,null,null,null,null,null,null,null,null,null,null,null,null,null,null,null,null,null,null,null,null,null,0]
[null,null,null,"H","J85","DEP +",null,{"$f":"IF(F46=Feuil1!$A$1,Feuil1!$A$2,IF(F46=Feuil1!$B$1,Feuil1!$B$2,IF(F46=Feuil1!$C$1,Feuil1!$C$2,IF(F46=Feuil1!$D$1,Feuil1!$D$2,IF(F46=Feuil1!$E$1,Feuil1!$E$2,IF(F46=Feuil1!$F$1,Feuil1!$F$2,IF(F46=Feuil1!$G$1,Feuil1!$G$2,IF(F46=Feuil1!$H$1,Feuil1!$H$2,IF(F46=Feuil1!$I$1,Feuil1!$I$2,IF(F46=Feuil1!$J$1,Feuil1!$J$2,IF(F46=Feuil1!$K$1,Feuil1!$K$2,IF(F46=Feuil1!$L$1,Feuil1!$L$2,1))))))))))))","v":3},null,null,null,null,null,null,null,null,null,null,null,null,null,null,null,null,null,null,null,null,null,null,null,null,null,null,null,null,null,null,null,null,null,null,null,null,null,null,null,0]
[null,null,null,"F","FM+58","MIN",null,{"$f":"IF(F47=Feuil1!$A$1,Feuil1!$A$2,IF(F47=Feuil1!$B$1,Feuil1!$B$2,IF(F47=Feuil1!$C$1,Feuil1!$C$2,IF(F47=Feuil1!$D$1,Feuil1!$D$2,IF(F47=Feuil1!$E$1,Feuil1!$E$2,IF(F47=Feuil1!$F$1,Feuil1!$F$2,IF(F47=Feuil1!$G$1,Feuil1!$G$2,IF(F47=Feuil1!$H$1,Feuil1!$H$2,IF(F47=Feuil1!$I$1,Feuil1!$I$2,IF(F47=Feuil1!$J$1,Feuil1!$J$2,IF(F47=Feuil1!$K$1,Feuil1!$K$2,IF(F47=Feuil1!$L$1,Feuil1!$L$2,1))))))))))))","v":3},null,null,null,null,null,null,null,null,null,null,null,null,null,null,null,null,null,null,null,null,null,null,null,null,null,null,null,null,null,null,null,null,null,null,null,null,null,null,null,0]
[null,null,null,"H","M40","BENJ",null,{"$f":"IF(F48=Feuil1!$A$1,Feuil1!$A$2,IF(F48=Feuil1!$B$1,Feuil1!$B$2,IF(F48=Feuil1!$C$1,Feuil1!$C$2,IF(F48=Feuil1!$D$1,Feuil1!$D$2,IF(F48=Feuil1!$E$1,Feuil1!$E$2,IF(F48=Feuil1!$F$1,Feuil1!$F$2,IF(F48=Feuil1!$G$1,Feuil1!$G$2,IF(F48=Feuil1!$H$1,Feuil1!$H$2,IF(F48=Feuil1!$I$1,Feuil1!$I$2,IF(F48=Feuil1!$J$1,Feuil1!$J$2,IF(F48=Feuil1!$K$1,Feuil1!$K$2,IF(F48=Feuil1!$L$1,Feuil1!$L$2,1))))))))))))","v":1},null,null,null,null,null,null,null,null,null,null,null,null,null,null,null,null,null,null,null,null,null,null,null,null,null,null,null,null,null,null,null,null,null,null,null,null,null,null,null,0]
[null,null,null,"H","M40","MIN",null,{"$f":"IF(F49=Feuil1!$A$1,Feuil1!$A$2,IF(F49=Feuil1!$B$1,Feuil1!$B$2,IF(F49=Feuil1!$C$1,Feuil1!$C$2,IF(F49=Feuil1!$D$1,Feuil1!$D$2,IF(F49=Feuil1!$E$1,Feuil1!$E$2,IF(F49=Feuil1!$F$1,Feuil1!$F$2,IF(F49=Feuil1!$G$1,Feuil1!$G$2,IF(F49=Feuil1!$H$1,Feuil1!$H$2,IF(F49=Feuil1!$I$1,Feuil1!$I$2,IF(F49=Feuil1!$J$1,Feuil1!$J$2,IF(F49=Feuil1!$K$1,Feuil1!$K$2,IF(F49=Feuil1!$L$1,Feuil1!$L$2,1))))))))))))","v":3},null,null,null,null,null,null,null,null,null,null,null,null,null,null,null,null,null,null,null,null,null,null,null,null,null,null,null,null,null,null,null,null,null,null,null,null,null,null,null,0]
[null,null,null,"H",null,null,null,{"$f":"IF(F50=Feuil1!$A$1,Feuil1!$A$2,IF(F50=Feuil1!$B$1,Feuil1!$B$2,IF(F50=Feuil1!$C$1,Feuil1!$C$2,IF(F50=Feuil1!$D$1,Feuil1!$D$2,IF(F50=Feuil1!$E$1,Feuil1!$E$2,IF(F50=Feuil1!$F$1,Feuil1!$F$2,IF(F50=Feuil1!$G$1,Feuil1!$G$2,IF(F50=Feuil1!$H$1,Feuil1!$H$2,IF(F50=Feuil1!$I$1,Feuil1!$I$2,IF(F50=Feuil1!$J$1,Feuil1!$J$2,IF(F50=Feuil1!$K$1,Feuil1!$K$2,IF(F50=Feuil1!$L$1,Feuil1!$L$2,1))))))))))))","v":1},null,null,null,null,null,null,null,null,null,null,null,null,null,null,null,null,null,null,null,null,null,null,null,null,null,null,null,null,null,null,null,null,null,null,null,null,null,null,null,0]
[null,null,null,"H",null,null,null,{"$f":"IF(F51=Feuil1!$A$1,Feuil1!$A$2,IF(F51=Feuil1!$B$1,Feuil1!$B$2,IF(F51=Feuil1!$C$1,Feuil1!$C$2,IF(F51=Feuil1!$D$1,Feuil1!$D$2,IF(F51=Feuil1!$E$1,Feuil1!$E$2,IF(F51=Feuil1!$F$1,Feuil1!$F$2,IF(F51=Feuil1!$G$1,Feuil1!$G$2,IF(F51=Feuil1!$H$1,Feuil1!$H$2,IF(F51=Feuil1!$I$1,Feuil1!$I$2,IF(F51=Feuil1!$J$1,Feuil1!$J$2,IF(F51=Feuil1!$K$1,Feuil1!$K$2,IF(F51=Feuil1!$L$1,Feuil1!$L$2,1))))))))))))","v":1},null,null,null,null,null,null,null,null,null,null,null,null,null,null,null,null,null,null,null,null,null,null,null,null,null,null,null,null,null,null,null,null,null,null,null,null,null,null,null,0]
[null,null,null,"H",null,null,null,{"$f":"IF(F52=Feuil1!$A$1,Feuil1!$A$2,IF(F52=Feuil1!$B$1,Feuil1!$B$2,IF(F52=Feuil1!$C$1,Feuil1!$C$2,IF(F52=Feuil1!$D$1,Feuil1!$D$2,IF(F52=Feuil1!$E$1,Feuil1!$E$2,IF(F52=Feuil1!$F$1,Feuil1!$F$2,IF(F52=Feuil1!$G$1,Feuil1!$G$2,IF(F52=Feuil1!$H$1,Feuil1!$H$2,IF(F52=Feuil1!$I$1,Feuil1!$I$2,IF(F52=Feuil1!$J$1,Feuil1!$J$2,IF(F52=Feuil1!$K$1,Feuil1!$K$2,IF(F52=Feuil1!$L$1,Feuil1!$L$2,1))))))))))))","v":1},null,null,null,null,null,null,null,null,null,null,null,null,null,null,null,null,null,null,null,null,null,null,null,null,null,null,null,null,null,null,null,null,null,null,null,null,null,null,null,0]
[null,null,null,"H",null,null,null,{"$f":"IF(F53=Feuil1!$A$1,Feuil1!$A$2,IF(F53=Feuil1!$B$1,Feuil1!$B$2,IF(F53=Feuil1!$C$1,Feuil1!$C$2,IF(F53=Feuil1!$D$1,Feuil1!$D$2,IF(F53=Feuil1!$E$1,Feuil1!$E$2,IF(F53=Feuil1!$F$1,Feuil1!$F$2,IF(F53=Feuil1!$G$1,Feuil1!$G$2,IF(F53=Feuil1!$H$1,Feuil1!$H$2,IF(F53=Feuil1!$I$1,Feuil1!$I$2,IF(F53=Feuil1!$J$1,Feuil1!$J$2,IF(F53=Feuil1!$K$1,Feuil1!$K$2,IF(F53=Feuil1!$L$1,Feuil1!$L$2,1))))))))))))","v":1},null,null,null,null,null,null,null,null,null,null,null,null,null,null,null,null,null,null,null,null,null,null,null,null,null,null,null,null,null,null,null,null,null,null,null,null,null,null,null,0]
[null,null,null,"H",null,null,null,{"$f":"IF(F54=Feuil1!$A$1,Feuil1!$A$2,IF(F54=Feuil1!$B$1,Feuil1!$B$2,IF(F54=Feuil1!$C$1,Feuil1!$C$2,IF(F54=Feuil1!$D$1,Feuil1!$D$2,IF(F54=Feuil1!$E$1,Feuil1!$E$2,IF(F54=Feuil1!$F$1,Feuil1!$F$2,IF(F54=Feuil1!$G$1,Feuil1!$G$2,IF(F54=Feuil1!$H$1,Feuil1!$H$2,IF(F54=Feuil1!$I$1,Feuil1!$I$2,IF(F54=Feuil1!$J$1,Feuil1!$J$2,IF(F54=Feuil1!$K$1,Feuil1!$K$2,IF(F54=Feuil1!$L$1,Feuil1!$L$2,1))))))))))))","v":1},null,null,null,null,null,null,null,null,null,null,null,null,null,null,null,null,null,null,null,null,null,null,null,null,null,null,null,null,null,null,null,null,null,null,null,null,null,null,null,0]
[null,null,null,"H",null,null,null,{"$f":"IF(F55=Feuil1!$A$1,Feuil1!$A$2,IF(F55=Feuil1!$B$1,Feuil1!$B$2,IF(F55=Feuil1!$C$1,Feuil1!$C$2,IF(F55=Feuil1!$D$1,Feuil1!$D$2,IF(F55=Feuil1!$E$1,Feuil1!$E$2,IF(F55=Feuil1!$F$1,Feuil1!$F$2,IF(F55=Feuil1!$G$1,Feuil1!$G$2,IF(F55=Feuil1!$H$1,Feuil1!$H$2,IF(F55=Feuil1!$I$1,Feuil1!$I$2,IF(F55=Feuil1!$J$1,Feuil1!$J$2,IF(F55=Feuil1!$K$1,Feuil1!$K$2,IF(F55=Feuil1!$L$1,Feuil1!$L$2,1))))))))))))","v":1},null,null,null,null,null,null,null,null,null,null,null,null,null,null,null,null,null,null,null,null,null,null,null,null,null,null,null,null,null,null,null,null,null,null,null,null,null,null,null,0]
[null,null,null,"H",null,null,null,{"$f":"IF(F56=Feuil1!$A$1,Feuil1!$A$2,IF(F56=Feuil1!$B$1,Feuil1!$B$2,IF(F56=Feuil1!$C$1,Feuil1!$C$2,IF(F56=Feuil1!$D$1,Feuil1!$D$2,IF(F56=Feuil1!$E$1,Feuil1!$E$2,IF(F56=Feuil1!$F$1,Feuil1!$F$2,IF(F56=Feuil1!$G$1,Feuil1!$G$2,IF(F56=Feuil1!$H$1,Feuil1!$H$2,IF(F56=Feuil1!$I$1,Feuil1!$I$2,IF(F56=Feuil1!$J$1,Feuil1!$J$2,IF(F56=Feuil1!$K$1,Feuil1!$K$2,IF(F56=Feuil1!$L$1,Feuil1!$L$2,1))))))))))))","v":1},null,null,null,null,null,null,null,null,null,null,null,null,null,null,null,null,null,null,null,null,null,null,null,null,null,null,null,null,null,null,null,null,null,null,null,null,null,null,null,0]
[null,null,null,"H",null,null,null,{"$f":"IF(F57=Feuil1!$A$1,Feuil1!$A$2,IF(F57=Feuil1!$B$1,Feuil1!$B$2,IF(F57=Feuil1!$C$1,Feuil1!$C$2,IF(F57=Feuil1!$D$1,Feuil1!$D$2,IF(F57=Feuil1!$E$1,Feuil1!$E$2,IF(F57=Feuil1!$F$1,Feuil1!$F$2,IF(F57=Feuil1!$G$1,Feuil1!$G$2,IF(F57=Feuil1!$H$1,Feuil1!$H$2,IF(F57=Feuil1!$I$1,Feuil1!$I$2,IF(F57=Feuil1!$J$1,Feuil1!$J$2,IF(F57=Feuil1!$K$1,Feuil1!$K$2,IF(F57=Feuil1!$L$1,Feuil1!$L$2,1))))))))))))","v":1},null,null,null,null,null,null,null,null,null,null,null,null,null,null,null,null,null,null,null,null,null,null,null,null,null,null,null,null,null,null,null,null,null,null,null,null,null,null,null,0]
[null,null,null,"H",null,null,null,{"$f":"IF(F58=Feuil1!$A$1,Feuil1!$A$2,IF(F58=Feuil1!$B$1,Feuil1!$B$2,IF(F58=Feuil1!$C$1,Feuil1!$C$2,IF(F58=Feuil1!$D$1,Feuil1!$D$2,IF(F58=Feuil1!$E$1,Feuil1!$E$2,IF(F58=Feuil1!$F$1,Feuil1!$F$2,IF(F58=Feuil1!$G$1,Feuil1!$G$2,IF(F58=Feuil1!$H$1,Feuil1!$H$2,IF(F58=Feuil1!$I$1,Feuil1!$I$2,IF(F58=Feuil1!$J$1,Feuil1!$J$2,IF(F58=Feuil1!$K$1,Feuil1!$K$2,IF(F58=Feuil1!$L$1,Feuil1!$L$2,1))))))))))))","v":1},null,null,null,null,null,null,null,null,null,null,null,null,null,null,null,null,null,null,null,null,null,null,null,null,null,null,null,null,null,null,null,null,null,null,null,null,null,null,null,0]
[null,null,null,"H",null,null,null,{"$f":"IF(F59=Feuil1!$A$1,Feuil1!$A$2,IF(F59=Feuil1!$B$1,Feuil1!$B$2,IF(F59=Feuil1!$C$1,Feuil1!$C$2,IF(F59=Feuil1!$D$1,Feuil1!$D$2,IF(F59=Feuil1!$E$1,Feuil1!$E$2,IF(F59=Feuil1!$F$1,Feuil1!$F$2,IF(F59=Feuil1!$G$1,Feuil1!$G$2,IF(F59=Feuil1!$H$1,Feuil1!$H$2,IF(F59=Feuil1!$I$1,Feuil1!$I$2,IF(F59=Feuil1!$J$1,Feuil1!$J$2,IF(F59=Feuil1!$K$1,Feuil1!$K$2,IF(F59=Feuil1!$L$1,Feuil1!$L$2,1))))))))))))","v":1},null,null,null,null,null,null,null,null,null,null,null,null,null,null,null,null,null,null,null,null,null,null,null,null,null,null,null,null,null,null,null,null,null,null,null,null,null,null,null,0]
[null,null,null,"H",null,null,null,{"$f":"IF(F60=Feuil1!$A$1,Feuil1!$A$2,IF(F60=Feuil1!$B$1,Feuil1!$B$2,IF(F60=Feuil1!$C$1,Feuil1!$C$2,IF(F60=Feuil1!$D$1,Feuil1!$D$2,IF(F60=Feuil1!$E$1,Feuil1!$E$2,IF(F60=Feuil1!$F$1,Feuil1!$F$2,IF(F60=Feuil1!$G$1,Feuil1!$G$2,IF(F60=Feuil1!$H$1,Feuil1!$H$2,IF(F60=Feuil1!$I$1,Feuil1!$I$2,IF(F60=Feuil1!$J$1,Feuil1!$J$2,IF(F60=Feuil1!$K$1,Feuil1!$K$2,IF(F60=Feuil1!$L$1,Feuil1!$L$2,1))))))))))))","v":1},null,null,null,null,null,null,null,null,null,null,null,null,null,null,null,null,null,null,null,null,null,null,null,null,null,null,null,null,null,null,null,null,null,null,null,null,null,null,null,0]
[null,null,null,"H",null,null,null,{"$f":"IF(F61=Feuil1!$A$1,Feuil1!$A$2,IF(F61=Feuil1!$B$1,Feuil1!$B$2,IF(F61=Feuil1!$C$1,Feuil1!$C$2,IF(F61=Feuil1!$D$1,Feuil1!$D$2,IF(F61=Feuil1!$E$1,Feuil1!$E$2,IF(F61=Feuil1!$F$1,Feuil1!$F$2,IF(F61=Feuil1!$G$1,Feuil1!$G$2,IF(F61=Feuil1!$H$1,Feuil1!$H$2,IF(F61=Feuil1!$I$1,Feuil1!$I$2,IF(F61=Feuil1!$J$1,Feuil1!$J$2,IF(F61=Feuil1!$K$1,Feuil1!$K$2,IF(F61=Feuil1!$L$1,Feuil1!$L$2,1))))))))))))","v":1},null,null,null,null,null,null,null,null,null,null,null,null,null,null,null,null,null,null,null,null,null,null,null,null,null,null,null,null,null,null,null,null,null,null,null,null,null,null,null,0]
[null,null,null,"H",null,null,null,{"$f":"IF(F62=Feuil1!$A$1,Feuil1!$A$2,IF(F62=Feuil1!$B$1,Feuil1!$B$2,IF(F62=Feuil1!$C$1,Feuil1!$C$2,IF(F62=Feuil1!$D$1,Feuil1!$D$2,IF(F62=Feuil1!$E$1,Feuil1!$E$2,IF(F62=Feuil1!$F$1,Feuil1!$F$2,IF(F62=Feuil1!$G$1,Feuil1!$G$2,IF(F62=Feuil1!$H$1,Feuil1!$H$2,IF(F62=Feuil1!$I$1,Feuil1!$I$2,IF(F62=Feuil1!$J$1,Feuil1!$J$2,IF(F62=Feuil1!$K$1,Feuil1!$K$2,IF(F62=Feuil1!$L$1,Feuil1!$L$2,1))))))))))))","v":1},null,null,null,null,null,null,null,null,null,null,null,null,null,null,null,null,null,null,null,null,null,null,null,null,null,null,null,null,null,null,null,null,null,null,null,null,null,null,null,0]
[null,null,null,"TOTAL SERIES",null,null,null,{"$f":"SUM(H12:H62)","v":342},null,null,null,null,null,null,null,null,null,null,null,null,null,null,null,null,null,null,null,null,null,null,null,null,null,null,null,null,null,null,null,null,null,null,null,null,"Pts Bonification",null,null,{"$f":"+SUM(AV12:AV62)","v":0}]
[null,null,null,null,null,null,null,null,null,null,null,null,null,null,null,null,null,null,null,null,null,null,null,null,null,null,null,null,null,null,null,null,null,null,null,null,null,null,null,null,null,null,null,null,"Pts d'Equipe",null,null,{"$f":"SUM(AV9)","v":0}]
[null,null,null,null,null,null,null,null,null,null,null,null,null,null,null,null,null,null,null,null,null,null,null,null,null,null,null,null,null,null,null,null,null,null,null,null,null,null,null,null,null,null,null,null,"Pts de Séries",null,null,{"$f":"SUM(H63)","v":342}]
[null,null,null,null,null,null,null,null,null,null,null,null,null,null,null,null,null,null,null,null,null,null,null,null,null,null,null,null,null,null,null,null,null,null,null,null,null,null,null,null,null,null,null,null,"TOTAL GENERAL",null,null,{"$f":"SUM(AV63:AV65)","v":342}]

{"sheet":"Feuil1","index":1,"n_rows":2,"n_cols":12,"rows_kept":2,"cut":false,"hidden":true,"merged":[]}
["Non Cl.","BENJ","MIN","DEB ","DEP +","REG +","IRG +","FED +","NAT +","INTB +","INTA +","OLY +"]
[1,1,3,2,3,5,8,12,20,30,40,60]